[Event "Titled Tuesday Blitz March 29 Late 2022"]
[White "Kosteniuk, Alexandra"]
[Black "Jaferian, Koosha"]
[WhiteFideId "4128125"]
[BlackFideId "12507440"]
[WhiteElo "2469"]
[BlackElo "2030"]
[Result "1-0"]
[Round "10"]
[TimeControl "180+1"]
[Date "2022.03.29"]
[WhiteClock "0:01:17"]
[BlackClock "0:00:12"]

1. e4 {[%clk 0:03:00]}  c6 {[%clk 0:03:00]} 2. Nf3 {[%clk 0:02:59]}  d5 {[%clk 0:03:00]} 3. Nc3 {[%clk 0:03:00]}  Bg4 {[%clk 0:03:00]} 4. h3 {[%clk 0:02:58]}  Bxf3 {[%clk 0:03:00]} 5. Qxf3 {[%clk 0:02:59]}  e6 {[%clk 0:03:01]} 6. g3 {[%clk 0:02:58]}  g6 {[%clk 0:02:54]} 7. d4 {[%clk 0:02:55]}  Bg7 {[%clk 0:02:49]} 8. Be3 {[%clk 0:02:48]}  Ne7 {[%clk 0:02:45]} 9. Bg2 {[%clk 0:02:44]}  O-O {[%clk 0:02:45]} 10. O-O-O {[%clk 0:02:36]}  Nd7 {[%clk 0:02:40]} 11. h4 {[%clk 0:02:36]}  f5 {[%clk 0:02:40]} 12. exd5 {[%clk 0:02:32]}  Nxd5 {[%clk 0:02:32]} 13. Nxd5 {[%clk 0:02:30]}  exd5 {[%clk 0:02:33]} 14. h5 {[%clk 0:02:28]}  Nf6 {[%clk 0:02:16]} 15. hxg6 {[%clk 0:02:26]}  hxg6 {[%clk 0:02:16]} 16. Bh6 {[%clk 0:02:26]}  Ne4 {[%clk 0:02:11]} 17. Bxg7 {[%clk 0:02:24]}  Kxg7 {[%clk 0:02:12]} 18. Qf4 {[%clk 0:02:08]}  Qg5 {[%clk 0:02:07]} 19. Qxg5 {[%clk 0:02:07]}  Nxg5 {[%clk 0:02:07]} 20. f3 {[%clk 0:02:03]}  Rae8 {[%clk 0:02:01]} 21. Kd2 {[%clk 0:02:03]}  Re7 {[%clk 0:01:57]} 22. Rde1 {[%clk 0:01:59]}  Rfe8 {[%clk 0:01:56]} 23. Rxe7+ {[%clk 0:01:59]}  Rxe7 {[%clk 0:01:57]} 24. b4 {[%clk 0:01:56]}  Nf7 {[%clk 0:01:32]} 25. a4 {[%clk 0:01:56]}  Nd6 {[%clk 0:01:32]} 26. Bf1 {[%clk 0:01:57]}  Nc4+ {[%clk 0:01:21]} 27. Bxc4 {[%clk 0:01:56]}  dxc4 {[%clk 0:01:22]} 28. b5 {[%clk 0:01:52]}  cxb5 {[%clk 0:01:13]} 29. axb5 {[%clk 0:01:52]}  f4 {[%clk 0:00:42]} 30. gxf4 {[%clk 0:01:49]}  Rf7 {[%clk 0:00:42]} 31. Rh4 {[%clk 0:01:46]}  Rf5 {[%clk 0:00:32]} 32. Kc3 {[%clk 0:01:46]}  Rxb5 {[%clk 0:00:33]} 33. Kxc4 {[%clk 0:01:47]}  Rf5 {[%clk 0:00:30]} 34. d5 {[%clk 0:01:44]}  b5+ {[%clk 0:00:20]} 35. Kc5 {[%clk 0:01:41]}  a5 {[%clk 0:00:20]} 36. Kc6 {[%clk 0:01:40]}  a4 {[%clk 0:00:13]} 37. d6 {[%clk 0:01:40]}  a3 {[%clk 0:00:12]} 38. d7 {[%clk 0:01:39]}  Rf8 {[%clk 0:00:12]} 39. Kc7 {[%clk 0:01:37]}  Kf6 {[%clk 0:00:08]} 40. d8=Q+ {[%clk 0:01:32]}  Rxd8 {[%clk 0:00:08]} 41. Kxd8 {[%clk 0:01:33]}  b4 {[%clk 0:00:09]} 42. Kd7 {[%clk 0:01:22]}  Kf5 {[%clk 0:00:08]} 43. Kd6 {[%clk 0:01:21]}  a2 {[%clk 0:00:06]} 44. Rh1 {[%clk 0:01:20]}  Kxf4 {[%clk 0:00:06]} 45. Kc5 {[%clk 0:01:19]}  Kxf3 {[%clk 0:00:06]} 46. Kxb4 {[%clk 0:01:20]}  g5 {[%clk 0:00:06]} 47. Kb3 {[%clk 0:01:19]}  g4 {[%clk 0:00:07]} 48. Kxa2 {[%clk 0:01:18]}  g3 {[%clk 0:00:08]} 49. Rc1 {[%clk 0:01:18]}  g2 {[%clk 0:00:09]} 50. c4 {[%clk 0:01:17]}  Kf2 {[%clk 0:00:10]} 51. c5 {[%clk 0:01:17]}  g1=Q {[%clk 0:00:11]} 52. Rxg1 {[%clk 0:01:17]}  Kxg1 {[%clk 0:00:12]} 53. c6 {[%clk 0:01:17]} 1-0


[Site "https://www.chess.com"]

[Event "Titled Tuesday Blitz March 29 Late 2022"]
[White "Le Goff, Ronan"]
[Black "Lewtak, Damian"]
[WhiteFideId "612073"]
[BlackFideId "1141724"]
[WhiteElo "2276"]
[BlackElo "2362"]
[Result "1-0"]
[Round "10"]
[TimeControl "180+1"]
[Date "2022.03.29"]
[WhiteClock "0:01:03"]
[BlackClock "0:01:25"]

1. d4 {[%clk 0:03:00]}  d5 {[%clk 0:02:53]} 2. Nf3 {[%clk 0:03:01]}  Nf6 {[%clk 0:02:52]} 3. Bf4 {[%clk 0:03:01]}  c5 {[%clk 0:02:52]} 4. e3 {[%clk 0:03:01]}  e6 {[%clk 0:02:51]} 5. Nc3 {[%clk 0:03:00]}  Bd6 {[%clk 0:02:50]} 6. Bg3 {[%clk 0:02:57]}  O-O {[%clk 0:02:45]} 7. dxc5 {[%clk 0:02:56]}  Bxg3 {[%clk 0:02:44]} 8. hxg3 {[%clk 0:02:55]}  Qa5 {[%clk 0:02:45]} 9. Bd3 {[%clk 0:02:55]}  Nbd7 {[%clk 0:02:43]} 10. a3 {[%clk 0:02:53]}  Qxc5 {[%clk 0:02:43]} 11. g4 {[%clk 0:02:53]}  g6 {[%clk 0:02:39]} 12. g5 {[%clk 0:02:51]}  Nh5 {[%clk 0:02:27]} 13. g4 {[%clk 0:02:48]}  Ng7 {[%clk 0:02:27]} 14. e4 {[%clk 0:02:37]}  d4 {[%clk 0:02:20]} 15. Ne2 {[%clk 0:02:31]}  e5 {[%clk 0:02:11]} 16. Ng3 {[%clk 0:02:15]}  Ne6 {[%clk 0:02:07]} 17. Qe2 {[%clk 0:02:03]}  Nf4 {[%clk 0:02:04]} 18. Qf1 {[%clk 0:01:55]}  f6 {[%clk 0:01:42]} 19. Bc4+ {[%clk 0:01:40]}  Kg7 {[%clk 0:01:38]} 20. Rxh7+ {[%clk 0:01:35]}  Kxh7 {[%clk 0:01:26]} 21. Qh1+ {[%clk 0:01:28]}  Nh5 {[%clk 0:01:26]} 22. Nxh5 {[%clk 0:01:24]}  fxg5 {[%clk 0:01:25]} 23. Nxg5+ {[%clk 0:01:12]}  Kh6 {[%clk 0:01:25]} 24. Ne6 {[%clk 0:01:03]} 1-0


[Site "https://www.chess.com"]

[Event "Titled Tuesday Blitz March 29 Late 2022"]
[White "Lin, Dachey"]
[Black "Adewumi, Tanitoluwa"]
[WhiteFideId "2029650"]
[BlackFideId "30966396"]
[WhiteElo "2313"]
[BlackElo "2588"]
[Result "1-0"]
[Round "10"]
[TimeControl "180+1"]
[Date "2022.03.29"]
[WhiteClock "0:01:15"]
[BlackClock "0:00:04"]

1. g3 {[%clk 0:03:00]}  d5 {[%clk 0:02:43]} 2. Bg2 {[%clk 0:03:01]}  c6 {[%clk 0:02:44]} 3. Nf3 {[%clk 0:03:01]}  Bg4 {[%clk 0:02:39]} 4. Ne5 {[%clk 0:03:00]}  Bf5 {[%clk 0:02:39]} 5. d4 {[%clk 0:02:59]}  Nf6 {[%clk 0:02:37]} 6. O-O {[%clk 0:02:58]}  Nbd7 {[%clk 0:02:11]} 7. c4 {[%clk 0:02:58]}  e6 {[%clk 0:02:04]} 8. Nc3 {[%clk 0:02:59]}  Be7 {[%clk 0:02:01]} 9. Qb3 {[%clk 0:02:58]}  Qb6 {[%clk 0:01:57]} 10. Nxd7 {[%clk 0:02:52]}  Nxd7 {[%clk 0:01:52]} 11. Qxb6 {[%clk 0:02:45]}  axb6 {[%clk 0:01:44]} 12. e4 {[%clk 0:02:38]}  dxe4 {[%clk 0:01:39]} 13. Nxe4 {[%clk 0:02:39]}  O-O {[%clk 0:01:34]} 14. Be3 {[%clk 0:02:34]}  Ra4 {[%clk 0:01:26]} 15. b3 {[%clk 0:02:28]}  Ra6 {[%clk 0:01:16]} 16. a4 {[%clk 0:02:27]}  Rfa8 {[%clk 0:01:13]} 17. Rad1 {[%clk 0:02:24]}  Bb4 {[%clk 0:01:07]} 18. Bf4 {[%clk 0:01:56]}  b5 {[%clk 0:00:49]} 19. axb5 {[%clk 0:01:42]}  cxb5 {[%clk 0:00:50]} 20. c5 {[%clk 0:01:41]}  Rc6 {[%clk 0:00:36]} 21. Nd6 {[%clk 0:01:41]}  Bc2 {[%clk 0:00:23]} 22. Rc1 {[%clk 0:01:41]}  Bd3 {[%clk 0:00:22]} 23. Nxb7 {[%clk 0:01:38]}  Rca6 {[%clk 0:00:16]} 24. Nd6 {[%clk 0:01:27]}  Rf8 {[%clk 0:00:07]} 25. Bb7 {[%clk 0:01:21]}  Ra7 {[%clk 0:00:04]} 26. Bc6 {[%clk 0:01:20]}  Bxf1 {[%clk 0:00:02]} 27. Kxf1 {[%clk 0:01:21]}  Nb8 {[%clk 0:00:02]} 28. Bxb5 {[%clk 0:01:21]}  f6 {[%clk 0:00:03]} 29. Ba4 {[%clk 0:01:19]}  e5 {[%clk 0:00:03]} 30. dxe5 {[%clk 0:01:19]}  fxe5 {[%clk 0:00:04]} 31. Bxe5 {[%clk 0:01:19]}  Nd7 {[%clk 0:00:05]} 32. Bd4 {[%clk 0:01:19]}  Rc7 {[%clk 0:00:04]} 33. Nb5 {[%clk 0:01:17]}  Rcc8 {[%clk 0:00:04]} 34. Na7 {[%clk 0:01:15]}  Rc7 {[%clk 0:00:04]} 35. c6 {[%clk 0:01:15]}  Nf6 {[%clk 0:00:04]} 36. Nb5 {[%clk 0:01:15]}  Rcc8 {[%clk 0:00:05]} 37. c7 {[%clk 0:01:15]}  Ne4 {[%clk 0:00:04]} 38. Na7 {[%clk 0:01:15]}  Kf7 {[%clk 0:00:03]} 39. Nxc8 {[%clk 0:01:15]}  Rxc8 {[%clk 0:00:04]} 40. Bd7 {[%clk 0:01:15]}  Nd2+ {[%clk 0:00:03]} 41. Kg2 {[%clk 0:01:14]}  Nxb3 {[%clk 0:00:03]} 42. Bxc8 {[%clk 0:01:14]}  Nxc1 {[%clk 0:00:04]} 43. Be6+ {[%clk 0:01:15]} 1-0


[Site "https://www.chess.com"]

[Event "Titled Tuesday Blitz March 29 Late 2022"]
[White "Manolache, Marius"]
[Black "Petrovic, Aleksa"]
[WhiteFideId "1201530"]
[BlackFideId "967629"]
[WhiteElo "2389"]
[BlackElo "2245"]
[Result "1-0"]
[Round "10"]
[TimeControl "180+1"]
[Date "2022.03.29"]
[WhiteClock "0:00:10"]
[BlackClock "0:00:02"]

1. d4 {[%clk 0:02:56]}  Nf6 {[%clk 0:03:00]} 2. Bg5 {[%clk 0:02:54]}  e6 {[%clk 0:02:58]} 3. Nd2 {[%clk 0:02:53]}  c5 {[%clk 0:02:52]} 4. e3 {[%clk 0:02:52]}  b6 {[%clk 0:02:50]} 5. Bd3 {[%clk 0:02:48]}  Bb7 {[%clk 0:02:49]} 6. Ngf3 {[%clk 0:02:48]}  Nc6 {[%clk 0:02:40]} 7. c3 {[%clk 0:02:47]}  Be7 {[%clk 0:02:37]} 8. h3 {[%clk 0:02:42]}  Nd5 {[%clk 0:02:30]} 9. Bxe7 {[%clk 0:02:41]}  Qxe7 {[%clk 0:02:30]} 10. a3 {[%clk 0:02:40]}  f5 {[%clk 0:02:24]} 11. c4 {[%clk 0:02:38]}  Nf6 {[%clk 0:02:19]} 12. O-O {[%clk 0:02:36]}  Nd8 {[%clk 0:02:09]} 13. d5 {[%clk 0:02:29]}  g6 {[%clk 0:01:46]} 14. e4 {[%clk 0:02:24]}  fxe4 {[%clk 0:01:25]} 15. Nxe4 {[%clk 0:02:20]}  Nxe4 {[%clk 0:01:21]} 16. Bxe4 {[%clk 0:02:19]}  d6 {[%clk 0:01:20]} 17. b4 {[%clk 0:02:08]}  O-O {[%clk 0:01:14]} 18. bxc5 {[%clk 0:02:07]}  bxc5 {[%clk 0:01:14]} 19. Rb1 {[%clk 0:02:04]}  e5 {[%clk 0:00:56]} 20. Qd2 {[%clk 0:01:54]}  Rf4 {[%clk 0:00:53]} 21. Rfe1 {[%clk 0:01:49]}  Ba6 {[%clk 0:00:48]} 22. g3 {[%clk 0:01:44]}  Rf8 {[%clk 0:00:42]} 23. Rec1 {[%clk 0:01:40]}  Bc8 {[%clk 0:00:36]} 24. Kg2 {[%clk 0:01:35]}  Qd7 {[%clk 0:00:31]} 25. Rh1 {[%clk 0:01:23]}  Qa4 {[%clk 0:00:27]} 26. Qc3 {[%clk 0:01:15]}  Ba6 {[%clk 0:00:18]} 27. Rhc1 {[%clk 0:01:13]}  Nb7 {[%clk 0:00:17]} 28. Bc2 {[%clk 0:01:06]}  Qd7 {[%clk 0:00:16]} 29. Ng5 {[%clk 0:01:01]}  Nd8 {[%clk 0:00:12]} 30. Qa5 {[%clk 0:00:48]}  Bc8 {[%clk 0:00:12]} 31. Rh1 {[%clk 0:00:45]}  h6 {[%clk 0:00:08]} 32. Ne4 {[%clk 0:00:43]}  Kg7 {[%clk 0:00:09]} 33. Bd1 {[%clk 0:00:29]}  Nb7 {[%clk 0:00:05]} 34. Qb5 {[%clk 0:00:26]}  Qc7 {[%clk 0:00:04]} 35. Qc6 {[%clk 0:00:24]}  Rf7 {[%clk 0:00:04]} 36. Bg4 {[%clk 0:00:19]}  Bxg4 {[%clk 0:00:03]} 37. hxg4 {[%clk 0:00:19]}  Rc8 {[%clk 0:00:03]} 38. Qxc7 {[%clk 0:00:16]}  Rfxc7 {[%clk 0:00:03]} 39. g5 {[%clk 0:00:16]}  h5 {[%clk 0:00:03]} 40. Rb5 {[%clk 0:00:16]}  Rd8 {[%clk 0:00:01]} 41. Rhb1 {[%clk 0:00:15]}  Rdd7 {[%clk 0:00:02]} 42. a4 {[%clk 0:00:16]}  Kf7 {[%clk 0:00:02]} 43. a5 {[%clk 0:00:16]}  Ke7 {[%clk 0:00:02]} 44. a6 {[%clk 0:00:16]}  Nd8 {[%clk 0:00:03]} 45. Rb8 {[%clk 0:00:15]}  Nf7 {[%clk 0:00:03]} 46. Nf6 {[%clk 0:00:13]}  Rd8 {[%clk 0:00:03]} 47. R8b7 {[%clk 0:00:14]}  Rc8 {[%clk 0:00:02]} 48. Ne4 {[%clk 0:00:13]}  Nd8 {[%clk 0:00:02]} 49. R7b5 {[%clk 0:00:13]}  Kd7 {[%clk 0:00:02]} 50. Nf6+ {[%clk 0:00:12]}  Ke7 {[%clk 0:00:02]} 51. f4 {[%clk 0:00:12]}  Nf7 {[%clk 0:00:02]} 52. Ne4 {[%clk 0:00:11]}  exf4 {[%clk 0:00:01]} 53. gxf4 {[%clk 0:00:10]}  Kf8 {[%clk 0:00:02]} 54. Nf6 {[%clk 0:00:10]}  Re7 {[%clk 0:00:02]} 55. Rb8 {[%clk 0:00:10]}  Rxb8 {[%clk 0:00:02]} 56. Rxb8+ {[%clk 0:00:10]} 1-0


[Site "https://www.chess.com"]

[Event "Titled Tuesday Blitz March 29 Late 2022"]
[White "Melaugh, Shane"]
[Black "Golubev, Mikhail"]
[WhiteFideId "2509580"]
[BlackFideId "14100983"]
[WhiteElo "2014"]
[BlackElo "2374"]
[Result "0-1"]
[Round "10"]
[TimeControl "180+1"]
[Date "2022.03.30"]
[WhiteClock "0:00:06"]
[BlackClock "0:00:07"]

1. e4 {[%clk 0:03:00]}  c5 {[%clk 0:02:59]} 2. c4 {[%clk 0:03:00]}  d6 {[%clk 0:02:57]} 3. Nc3 {[%clk 0:03:00]}  Nc6 {[%clk 0:02:56]} 4. g3 {[%clk 0:03:01]}  g6 {[%clk 0:02:55]} 5. Bg2 {[%clk 0:03:02]}  Bg7 {[%clk 0:02:56]} 6. Nge2 {[%clk 0:03:02]}  e6 {[%clk 0:02:53]} 7. O-O {[%clk 0:03:03]}  Nge7 {[%clk 0:02:53]} 8. d3 {[%clk 0:03:03]}  O-O {[%clk 0:02:52]} 9. a3 {[%clk 0:03:04]}  Nd4 {[%clk 0:02:47]} 10. Rb1 {[%clk 0:03:04]}  Nec6 {[%clk 0:02:42]} 11. b4 {[%clk 0:03:04]}  Nxe2+ {[%clk 0:02:36]} 12. Nxe2 {[%clk 0:03:04]}  b6 {[%clk 0:02:23]} 13. Be3 {[%clk 0:02:36]}  e5 {[%clk 0:02:18]} 14. h3 {[%clk 0:02:03]}  Bd7 {[%clk 0:02:01]} 15. Nc3 {[%clk 0:01:56]}  Nd4 {[%clk 0:01:58]} 16. Nd5 {[%clk 0:01:48]}  f5 {[%clk 0:01:54]} 17. Bxd4 {[%clk 0:01:47]}  cxd4 {[%clk 0:01:49]} 18. f4 {[%clk 0:01:46]}  fxe4 {[%clk 0:01:46]} 19. dxe4 {[%clk 0:01:40]}  exf4 {[%clk 0:01:46]} 20. Nxf4 {[%clk 0:01:23]}  Rc8 {[%clk 0:01:41]} 21. Qd3 {[%clk 0:01:21]}  Be5 {[%clk 0:01:41]} 22. Ne2 {[%clk 0:01:19]}  Rxf1+ {[%clk 0:01:35]} 23. Rxf1 {[%clk 0:01:20]}  Qc7 {[%clk 0:01:34]} 24. Rc1 {[%clk 0:01:16]}  b5 {[%clk 0:01:19]} 25. c5 {[%clk 0:01:16]}  dxc5 {[%clk 0:01:11]} 26. Rxc5 {[%clk 0:01:17]}  Qb8 {[%clk 0:01:10]} 27. Nxd4 {[%clk 0:01:09]}  Bxg3 {[%clk 0:01:02]} 28. Rxc8+ {[%clk 0:00:59]}  Bxc8 {[%clk 0:00:59]} 29. Qxb5 {[%clk 0:00:53]}  Qf4 {[%clk 0:00:43]} 30. Qc4+ {[%clk 0:00:20]}  Kg7 {[%clk 0:00:40]} 31. Nf3 {[%clk 0:00:21]}  Qe3+ {[%clk 0:00:32]} 32. Kh1 {[%clk 0:00:19]}  Bxh3 {[%clk 0:00:28]} 33. Qd4+ {[%clk 0:00:17]}  Qxd4 {[%clk 0:00:27]} 34. Nxd4 {[%clk 0:00:18]}  Bd7 {[%clk 0:00:25]} 35. Bf3 {[%clk 0:00:17]}  Be5 {[%clk 0:00:25]} 36. Nc2 {[%clk 0:00:13]}  Bb2 {[%clk 0:00:20]} 37. Bd1 {[%clk 0:00:07]}  g5 {[%clk 0:00:17]} 38. Kg2 {[%clk 0:00:07]}  g4 {[%clk 0:00:16]} 39. Kg3 {[%clk 0:00:07]}  Be5+ {[%clk 0:00:15]} 40. Kg2 {[%clk 0:00:06]}  h5 {[%clk 0:00:14]} 41. Ne3 {[%clk 0:00:06]}  Kf6 {[%clk 0:00:11]} 42. Nf5 {[%clk 0:00:07]}  Kg5 {[%clk 0:00:10]} 43. a4 {[%clk 0:00:07]}  h4 {[%clk 0:00:10]} 44. b5 {[%clk 0:00:07]}  h3+ {[%clk 0:00:09]} 45. Kh1 {[%clk 0:00:07]}  Bxf5 {[%clk 0:00:09]} 46. exf5 {[%clk 0:00:07]}  Kxf5 {[%clk 0:00:09]} 47. a5 {[%clk 0:00:07]}  Bc7 {[%clk 0:00:09]} 48. b6 {[%clk 0:00:02]}  Bxb6 {[%clk 0:00:08]} 49. axb6 {[%clk 0:00:03]}  axb6 {[%clk 0:00:08]} 50. Kh2 {[%clk 0:00:04]}  Kf4 {[%clk 0:00:09]} 51. Be2 {[%clk 0:00:03]}  g3+ {[%clk 0:00:03]} 52. Kxh3 {[%clk 0:00:03]}  Ke3 {[%clk 0:00:04]} 53. Bb5 {[%clk 0:00:01]}  Kf2 {[%clk 0:00:04]} 54. Bc6 {[%clk 0:00:02]}  b5 {[%clk 0:00:04]} 55. Be4 {[%clk 0:00:02]}  b4 {[%clk 0:00:04]} 56. Bd5 {[%clk 0:00:02]}  b3 {[%clk 0:00:04]} 57. Be4 {[%clk 0:00:03]}  b2 {[%clk 0:00:04]} 58. Kh4 {[%clk 0:00:03]}  b1=Q {[%clk 0:00:04]} 59. Bxb1 {[%clk 0:00:03]}  g2 {[%clk 0:00:04]} 60. Bf5 {[%clk 0:00:04]}  g1=Q {[%clk 0:00:05]} 61. Bg4 {[%clk 0:00:04]}  Qg3+ {[%clk 0:00:05]} 62. Kg5 {[%clk 0:00:04]}  Ke3 {[%clk 0:00:06]} 63. Kf5 {[%clk 0:00:04]}  Qf4+ {[%clk 0:00:07]} 64. Kg6 {[%clk 0:00:04]}  Qxg4+ {[%clk 0:00:07]} 65. Kh6 {[%clk 0:00:04]}  Qg3 {[%clk 0:00:07]} 66. Kh7 {[%clk 0:00:05]}  Ke4 {[%clk 0:00:07]} 67. Kh8 {[%clk 0:00:06]}  Kf5 {[%clk 0:00:07]} 0-1


[Site "https://www.chess.com"]

[Event "Titled Tuesday Blitz March 29 Late 2022"]
[White "Meza, Anahi"]
[Black "Kozina, Anastasia"]
[WhiteFideId "111325"]
[BlackFideId "24174017"]
[WhiteElo "1968"]
[BlackElo "1993"]
[Result "0-1"]
[Round "10"]
[TimeControl "180+1"]
[Date "2022.03.30"]
[WhiteClock "0:00:02"]
[BlackClock "0:00:14"]

1. d4 {[%clk 0:03:00]}  e6 {[%clk 0:02:59]} 2. c4 {[%clk 0:03:00]}  Nf6 {[%clk 0:02:59]} 3. Nc3 {[%clk 0:02:59]}  Bb4 {[%clk 0:02:59]} 4. Nf3 {[%clk 0:02:58]}  O-O {[%clk 0:02:57]} 5. Bg5 {[%clk 0:02:52]}  Bxc3+ {[%clk 0:02:57]} 6. bxc3 {[%clk 0:02:51]}  h6 {[%clk 0:02:56]} 7. Bh4 {[%clk 0:02:50]}  b6 {[%clk 0:02:52]} 8. e3 {[%clk 0:02:50]}  Bb7 {[%clk 0:02:53]} 9. Bd3 {[%clk 0:02:50]}  d5 {[%clk 0:02:44]} 10. cxd5 {[%clk 0:02:49]}  exd5 {[%clk 0:02:45]} 11. O-O {[%clk 0:02:48]}  Qd6 {[%clk 0:02:43]} 12. Ne5 {[%clk 0:02:46]}  Nbd7 {[%clk 0:02:39]} 13. f4 {[%clk 0:02:46]}  c5 {[%clk 0:02:33]} 14. Bc2 {[%clk 0:02:45]}  Rac8 {[%clk 0:02:23]} 15. Qd3 {[%clk 0:02:28]}  Ne4 {[%clk 0:02:20]} 16. Qb5 {[%clk 0:01:49]}  Ndf6 {[%clk 0:02:09]} 17. Rac1 {[%clk 0:01:27]}  Nxc3 {[%clk 0:02:02]} 18. Qb2 {[%clk 0:01:20]}  Ne2+ {[%clk 0:01:58]} 19. Kh1 {[%clk 0:01:20]}  Nxc1 {[%clk 0:01:58]} 20. Rxc1 {[%clk 0:01:19]}  cxd4 {[%clk 0:01:52]} 21. exd4 {[%clk 0:01:20]}  Ne4 {[%clk 0:01:47]} 22. Rf1 {[%clk 0:01:12]}  Ba6 {[%clk 0:01:35]} 23. Re1 {[%clk 0:01:11]}  Qc7 {[%clk 0:01:30]} 24. Bxe4 {[%clk 0:01:09]}  dxe4 {[%clk 0:01:29]} 25. d5 {[%clk 0:00:51]}  Bd3 {[%clk 0:01:22]} 26. Nc6 {[%clk 0:00:36]}  Qxf4 {[%clk 0:01:08]} 27. Bg3 {[%clk 0:00:32]}  Qg5 {[%clk 0:01:04]} 28. Qd4 {[%clk 0:00:21]}  Kh7 {[%clk 0:00:38]} 29. Nxa7 {[%clk 0:00:19]}  Rc2 {[%clk 0:00:34]} 30. Nc6 {[%clk 0:00:19]}  Qd2 {[%clk 0:00:31]} 31. Rg1 {[%clk 0:00:18]}  Rc1 {[%clk 0:00:26]} 32. Bf2 {[%clk 0:00:16]}  Rxg1+ {[%clk 0:00:25]} 33. Bxg1 {[%clk 0:00:17]}  Qxa2 {[%clk 0:00:19]} 34. Ne5 {[%clk 0:00:15]}  Bf1 {[%clk 0:00:19]} 35. Bf2 {[%clk 0:00:13]}  Qb1 {[%clk 0:00:18]} 36. Bg1 {[%clk 0:00:11]}  Qc2 {[%clk 0:00:17]} 37. Qf2 {[%clk 0:00:08]}  Qxf2 {[%clk 0:00:17]} 38. Bxf2 {[%clk 0:00:09]}  Rd8 {[%clk 0:00:17]} 39. Kg1 {[%clk 0:00:06]}  Ba6 {[%clk 0:00:16]} 40. Bxb6 {[%clk 0:00:06]}  Rxd5 {[%clk 0:00:16]} 41. Kf2 {[%clk 0:00:07]}  Rd2+ {[%clk 0:00:15]} 42. Kg3 {[%clk 0:00:07]}  Rd5 {[%clk 0:00:15]} 43. Nxf7 {[%clk 0:00:06]}  Rf5 {[%clk 0:00:14]} 44. Nd6 {[%clk 0:00:06]}  Rf6 {[%clk 0:00:14]} 45. Bc5 {[%clk 0:00:05]}  Re6 {[%clk 0:00:14]} 46. Kf4 {[%clk 0:00:05]}  e3 {[%clk 0:00:14]} 47. Bxe3 {[%clk 0:00:03]}  Rxd6 {[%clk 0:00:14]} 48. g4 {[%clk 0:00:03]}  Rf6+ {[%clk 0:00:14]} 49. Ke5 {[%clk 0:00:03]}  Rf8 {[%clk 0:00:14]} 50. Bc5 {[%clk 0:00:03]}  Re8+ {[%clk 0:00:13]} 51. Kd6 {[%clk 0:00:03]}  Be2 {[%clk 0:00:14]} 52. h3 {[%clk 0:00:02]}  Re4 {[%clk 0:00:14]} 0-1


[Site "https://www.chess.com"]

[Event "Titled Tuesday Blitz March 29 Late 2022"]
[White "Pakleza, Zbigniew"]
[Black "Bluebaum, Matthias"]
[WhiteFideId "1119290"]
[BlackFideId "24651516"]
[WhiteElo "2467"]
[BlackElo "2550"]
[Result "0-1"]
[Round "10"]
[TimeControl "180+1"]
[Date "2022.03.29"]
[WhiteClock "0:00:12"]
[BlackClock "0:00:28"]

1. d4 {[%clk 0:03:00]}  Nf6 {[%clk 0:02:59]} 2. Nf3 {[%clk 0:03:00]}  d5 {[%clk 0:02:59]} 3. Bf4 {[%clk 0:03:00]}  c5 {[%clk 0:03:00]} 4. c3 {[%clk 0:03:00]}  Nc6 {[%clk 0:03:00]} 5. Nbd2 {[%clk 0:03:01]}  cxd4 {[%clk 0:02:55]} 6. cxd4 {[%clk 0:03:00]}  Bf5 {[%clk 0:02:55]} 7. e3 {[%clk 0:02:55]}  e6 {[%clk 0:02:54]} 8. Qb3 {[%clk 0:02:54]}  Qb6 {[%clk 0:02:41]} 9. Qxb6 {[%clk 0:02:47]}  axb6 {[%clk 0:02:42]} 10. Bb5 {[%clk 0:02:47]}  Nd7 {[%clk 0:02:37]} 11. Ke2 {[%clk 0:02:44]}  f6 {[%clk 0:02:34]} 12. Rhc1 {[%clk 0:02:42]}  Rc8 {[%clk 0:02:27]} 13. h3 {[%clk 0:02:37]}  g5 {[%clk 0:02:26]} 14. Bg3 {[%clk 0:02:35]}  h5 {[%clk 0:02:26]} 15. a3 {[%clk 0:02:27]}  h4 {[%clk 0:02:11]} 16. Bh2 {[%clk 0:02:27]}  g4 {[%clk 0:02:12]} 17. hxg4 {[%clk 0:02:24]}  Bxg4 {[%clk 0:02:13]} 18. Rc3 {[%clk 0:02:04]}  h3 {[%clk 0:02:01]} 19. gxh3 {[%clk 0:01:58]}  Rxh3 {[%clk 0:02:02]} 20. Bg3 {[%clk 0:01:58]}  e5 {[%clk 0:02:02]} 21. dxe5 {[%clk 0:01:50]}  fxe5 {[%clk 0:02:03]} 22. Kf1 {[%clk 0:01:27]}  e4 {[%clk 0:01:39]} 23. Ng1 {[%clk 0:01:23]}  Rh6 {[%clk 0:01:36]} 24. Rac1 {[%clk 0:01:08]}  Bg7 {[%clk 0:01:36]} 25. Rb3 {[%clk 0:01:09]}  Nc5 {[%clk 0:01:33]} 26. Be2 {[%clk 0:00:54]}  Bxe2+ {[%clk 0:01:31]} 27. Nxe2 {[%clk 0:00:49]}  Nxb3 {[%clk 0:01:28]} 28. Nxb3 {[%clk 0:00:50]}  Rh1+ {[%clk 0:01:26]} 29. Ng1 {[%clk 0:00:46]}  Bxb2 {[%clk 0:01:22]} 30. Rd1 {[%clk 0:00:47]}  Rd8 {[%clk 0:01:22]} 31. a4 {[%clk 0:00:46]}  Rd7 {[%clk 0:01:14]} 32. Kg2 {[%clk 0:00:45]}  Rh5 {[%clk 0:01:10]} 33. Ne2 {[%clk 0:00:45]}  Be5 {[%clk 0:01:11]} 34. Rb1 {[%clk 0:00:34]}  Rdh7 {[%clk 0:01:06]} 35. Nbd4 {[%clk 0:00:26]}  Bxg3 {[%clk 0:00:53]} 36. Nxg3 {[%clk 0:00:22]}  Rh2+ {[%clk 0:00:53]} 37. Kg1 {[%clk 0:00:22]}  Nxd4 {[%clk 0:00:49]} 38. exd4 {[%clk 0:00:23]}  R2h6 {[%clk 0:00:49]} 39. Rb5 {[%clk 0:00:22]}  Rd7 {[%clk 0:00:44]} 40. Nf5 {[%clk 0:00:20]}  Rh5 {[%clk 0:00:34]} 41. Ne3 {[%clk 0:00:15]}  Rd6 {[%clk 0:00:35]} 42. Kf1 {[%clk 0:00:15]}  Kd7 {[%clk 0:00:35]} 43. Ke2 {[%clk 0:00:15]}  Kc6 {[%clk 0:00:34]} 44. Rb1 {[%clk 0:00:15]}  Rf6 {[%clk 0:00:31]} 45. Rc1+ {[%clk 0:00:15]}  Kd6 {[%clk 0:00:30]} 46. Rb1 {[%clk 0:00:16]}  Kc6 {[%clk 0:00:30]} 47. Rxb6+ {[%clk 0:00:12]}  Kxb6 {[%clk 0:00:28]} 0-1


[Site "https://www.chess.com"]